bitfinex/quotes_BTCUSD_20220205
["timestamp","ask_amount","ask_price","bid_price","bid_amount"]
[1644033000544,0.11649191,41460.0,41459.0,0.060289]
[1644033000744,0.44744158,41460.0,41459.0,0.060289]
[1644033001543,0.44744158,41460.0,41455.0,0.00119869]
[1644033001544,0.11613758,41460.0,41455.0,0.00119869]
[1644033001743,0.06733627,41460.0,41456.0,0.060296]
[1644033001942,0.04880131,41457.0,41456.0,0.060296]
[1644033002697,0.04380131,41458.0,41456.0,0.060296]
[1644033004895,0.04380131,41458.0,41452.0,0.25735846]
[1644033005094,0.04380131,41458.0,41452.0,0.060303]
[1644033005095,0.11378936,41453.0,41452.0,0.060303]
[1644033005303,0.11378936,41453.0,41451.0,0.00619869]
[1644033005497,0.11378936,41453.0,41448.0,0.00619869]
[1644033005797,0.19565259,41452.0,41448.0,0.16906936]
[1644033006043,0.04380131,41449.0,41448.0,0.16906936]
[1644033006243,0.19565259,41452.0,41448.0,0.24058036]
[1644033006545,0.04380131,41449.0,41448.0,0.06650569]
[1644033006744,0.04380131,41449.0,41448.0,0.338316]
[1644033007949,0.04380131,41449.0,41448.0,0.333316]
[1644033008146,0.04957014,41451.0,41448.0,0.322103]
[1644033008345,0.04957014,41451.0,41448.0,0.4427121]
[1644033008545,0.04880131,41451.0,41448.0,0.4427121]
[1644033009346,0.04880131,41451.0,41448.0,0.18211479]
[1644033009547,0.04880131,41451.0,41446.0,0.120608]
[1644033009798,0.06534081,41446.0,41445.0,0.5525]
[1644033009999,0.04880131,41447.0,41444.0,0.3751]
[1644033010195,0.04880131,41447.0,41442.0,0.00196644]
[1644033010397,0.04880131,41444.0,41442.0,0.65813279]
[1644033010602,0.0485,41450.0,41442.0,0.15813279]
[1644033010800,0.04880131,41448.0,41442.0,0.15813279]
[1644033010999,0.04880131,41448.0,41442.0,0.15736504]
[1644033011201,0.04956892,41448.0,41442.0,0.15813276]
[1644033011500,0.27288218,41445.0,41442.0,0.15813276]
[1644033011701,0.27288218,41445.0,41442.0,0.00196641]
[1644033012101,0.27288218,41445.0,41442.0,0.00119869]
[1644033016044,0.27288218,41445.0,41441.0,0.00076779]
[1644033016246,0.22408087,41445.0,41441.0,0.00076779]
[1644033016445,0.04880131,41442.0,41441.0,0.00076779]
[1644033016845,0.04880131,41442.0,41439.0,0.00119869]
[1644033017044,0.04880131,41442.0,41439.0,0.00196651]
[1644033017301,0.04880131,41442.0,41439.0,0.00076782]
[1644033017302,0.30890304,41441.0,41439.0,0.00076782]
[1644033017499,0.379804,41440.0,41439.0,0.00076782]
[1644033017698,0.72891172,41440.0,41439.0,0.00076782]
[1644033018100,0.79959739,41440.0,41431.0,0.00019869]
[1644033018301,0.79959739,41440.0,41430.0,0.17801884]
[1644033018302,0.19306641,41432.0,41430.0,0.17801884]
[1644033018501,0.19306641,41432.0,41430.0,0.17782015]
[1644033018502,0.24186772,41432.0,41430.0,0.17782015]
[1644033018701,0.24186772,41432.0,41431.0,0.01124]
[1644033018898,0.24186772,41432.0,41430.0,0.00139738]
[1644033019099,0.24186772,41432.0,41430.0,0.00119869]
[1644033019898,0.04880131,41431.0,41430.0,0.18620996]
[1644033020099,0.176229,41442.0,41430.0,0.17516365]
[1644033020100,0.04880131,41438.0,41430.0,0.17516365]
[1644033020300,0.04880131,41438.0,41437.0,0.00119869]
[1644033020500,0.04880131,41438.0,41434.0,0.00119869]
[1644033020700,0.1159,41442.0,41434.0,0.00119869]
[1644033020956,0.20852146,41439.0,41434.0,0.00119869]
[1644033021248,0.04880131,41435.0,41433.0,0.00019869]
[1644033021453,0.04880131,41435.0,41432.0,0.00096659]
[1644033021850,0.04880131,41435.0,41432.0,0.00019869]
[1644033022048,0.04880131,41435.0,41432.0,0.011241]
[1644033022249,0.20852146,41439.0,41432.0,0.00019869]
[1644033022449,0.04880131,41435.0,41433.0,0.060325]
[1644033022650,0.04880131,41435.0,41434.0,0.011238]
[1644033023553,0.04880131,41435.0,41434.0,0.01243669]
[1644033024250,0.04880131,41438.0,41434.0,0.00119869]
[1644033024450,0.04880131,41438.0,41434.0,0.00139738]
[1644033024701,0.04880131,41438.0,41435.0,0.00119869]
[1644033024903,0.04880131,41438.0,41435.0,0.06171838]
[1644033025103,0.04880131,41437.0,41436.0,0.011237]
[1644033025802,0.04880131,41437.0,41436.0,0.23972515]
[1644033026003,0.04880131,41441.0,41437.0,0.180947]
[1644033026207,0.04880131,41441.0,41440.0,0.00119869]
[1644033026404,0.04880131,41441.0,41437.0,0.18234438]
[1644033026603,0.04880131,41441.0,41440.0,0.00119869]
[1644033027604,0.04880131,41441.0,41440.0,0.2808495]
[1644033030555,0.04880131,41441.0,41440.0,0.2920785]
[1644033031455,0.04868205,41441.0,41440.0,0.29219776]
[1644033031752,0.04195073,41446.0,41440.0,0.29219776]
[1644033031954,0.04868205,41442.0,41441.0,0.120622]
[1644033032196,0.04868205,41442.0,41441.0,0.39508819]
[1644033033198,0.02018986,41446.0,41441.0,0.39508819]
[1644033033398,0.02018986,41446.0,41442.0,0.00131795]
[1644033033597,0.02018986,41446.0,41442.0,0.06162864]
[1644033033797,0.04868205,41443.0,41442.0,0.06162864]
[1644033034002,0.04868205,41443.0,41442.0,0.06206816]
[1644033034199,0.04868205,41443.0,41442.0,0.00043952]
[1644033034999,0.04868205,41443.0,41441.0,0.060311]
[1644033035600,0.04868205,41443.0,41441.0,0.37089237]
[1644033040198,0.04868205,41443.0,41441.0,0.120625]
[1644033043447,0.04868205,41443.0,41441.0,0.060311]
[1644033044967,0.04868205,41443.0,41440.0,0.00096688]
[1644033045344,0.04868205,41443.0,41440.0,0.00076819]
[1644033045744,0.04868205,41443.0,41439.0,0.00019869]
[1644033045943,0.04868205,41440.0,41438.0,0.00131795]
[1644033046947,0.04868205,41440.0,41439.0,0.011225]
[1644033047801,0.04868205,41440.0,41439.0,0.071536]
[1644033049003,0.04868205,41440.0,41439.0,0.011225]
[1644033049201,0.04868205,41440.0,41439.0,0.071547]
[1644033049402,0.04868205,41441.0,41439.0,0.071547]
[1644033049614,0.04868205,41441.0,41440.0,0.00131795]
[1644033050202,0.04868205,41441.0,41440.0,0.01254695]
[1644033051644,0.33625663,41447.0,41441.0,0.060314]
[1644033051844,0.05,41443.0,41441.0,0.060314]
[1644033052845,0.12507674,41443.0,41440.0,0.00019869]
[1644033053047,0.12507674,41443.0,41439.0,0.06051569]
[1644033053347,0.07507674,41443.0,41440.0,0.00076815]
[1644033053547,0.07507674,41443.0,41440.0,0.00096684]
[1644033053748,0.05,41441.0,41440.0,0.00096684]
[1644033053947,0.05,41441.0,41440.0,0.00076815]
[1644033054148,0.05,41441.0,41439.0,0.06051569]
[1644033054347,0.05,41441.0,41439.0,0.060317]
[1644033055595,0.05,41441.0,41439.0,0.241256]
[1644033058648,0.05,41441.0,41440.0,0.010671]
[1644033059249,0.05,41441.0,41439.0,0.30176724]
[1644033059551,0.05,41441.0,41439.0,0.30156855]
[1644033061451,0.05,41441.0,41440.0,0.010675]
[1644033066245,0.05,41441.0,41439.0,0.30176724]
[1644033066447,0.05,41441.0,41439.0,0.30156855]
[1644033067649,0.05,41441.0,41439.0,0.24125555]
[1644033067847,0.05,41441.0,41439.0,0.30156955]
[1644033073311,0.05,41441.0,41440.0,0.010675]
[1644033073550,0.05,41441.0,41439.0,0.30176824]
[1644033073751,0.05,41441.0,41439.0,0.30156955]
[1644033074149,0.04992512,41441.0,41439.0,0.30156955]
[1644033074349,0.04992512,41440.0,41439.0,0.30156955]
[1644033074552,0.04992512,41440.0,41439.0,0.25212924]
[1644033074751,0.04992512,41440.0,41439.0,0.25193055]
[1644033075349,0.04992512,41440.0,41439.0,0.24125555]
[1644033076751,0.04992512,41440.0,41439.0,0.25193155]
[1644033078507,0.04992512,41440.0,41439.0,0.24125555]
[1644033078714,0.15228386,41439.0,41438.0,0.00019869]
[1644033078908,0.08928358,41439.0,41437.0,0.0009669]
[1644033079109,0.08928358,41439.0,41437.0,0.00076821]
[1644033079311,0.2100783,41438.0,41434.0,0.00019869]
[1644033079509,0.04992512,41435.0,41433.0,0.00019869]
[1644033079710,0.04992512,41435.0,41432.0,0.060327]
[1644033079909,0.04992512,41435.0,41432.0,0.06052569]
[1644033080512,0.04992512,41435.0,41432.0,0.060327]
[1644033081950,0.04992512,41435.0,41432.0,0.059508]
[1644033083452,0.04992512,41435.0,41432.0,0.12003169]
[1644033095110,0.04992512,41435.0,41432.0,0.05970669]
[1644033095509,0.04992512,41435.0,41432.0,0.059508]
[1644033097154,0.04992512,41435.0,41430.0,0.06052869]
[1644033097352,0.04992512,41435.0,41430.0,0.06033]
[1644033097552,0.12112199,41431.0,41430.0,0.06052869]
[1644033098252,0.12112199,41431.0,41430.0,0.06033]
[1644033100304,0.04992512,41431.0,41430.0,0.06033]
[1644033106360,0.04982426,41431.0,41430.0,0.06033]
[1644033106567,0.04982426,41431.0,41430.0,0.06052869]
[1644033107602,0.04982426,41431.0,41430.0,0.06033]
[1644033107802,0.04982426,41431.0,41430.0,0.06052869]
[1644033108402,0.44947131,41430.0,41429.0,0.00017574]
[1644033108602,0.44947131,41430.0,41429.0,0.00037606]
[1644033109001,0.44947131,41430.0,41429.0,0.00020032]
[1644033109206,0.44947131,41430.0,41429.0,0.00017574]
[1644033109402,0.44947131,41430.0,41429.0,0.00037606]
[1644033109602,0.44947131,41430.0,41429.0,0.00017574]
[1644033109801,0.44947131,41430.0,41428.0,0.35767937]
[1644033110604,0.44947131,41430.0,41429.0,0.010681]
[1644033110804,0.44947131,41430.0,41429.0,0.01088132]
[1644033112351,0.44947131,41430.0,41429.0,0.00020032]
[1644033112551,0.44947131,41430.0,41428.0,0.24150698]
[1644033113553,0.44947131,41430.0,41428.0,0.18118032]
[1644033117204,0.44947131,41430.0,41428.0,0.18135606]
[1644033118004,0.44947131,41430.0,41428.0,0.24168225]
[1644033118654,0.44947131,41430.0,41429.0,0.010694]
[1644033118853,0.44947131,41430.0,41429.0,0.01089432]
[1644033119255,0.44947131,41430.0,41429.0,0.00020032]
[1644033119461,0.44947131,41430.0,41428.0,0.18135606]
[1644033119864,0.44947131,41430.0,41428.0,0.18118032]
[1644033120257,0.44947131,41430.0,41428.0,0.18135606]
[1644033121058,0.44947131,41430.0,41429.0,0.010694]
[1644033121359,0.44947131,41430.0,41429.0,0.01089432]
[1644033122709,0.44947131,41430.0,41429.0,0.25903807]
[1644033122910,0.44947131,41430.0,41429.0,0.01089432]
[1644033123213,0.44947131,41430.0,41429.0,0.00020032]
[1644033123409,0.44947131,41430.0,41428.0,0.48168342]
[1644033123609,0.44947131,41430.0,41429.0,0.010694]
[1644033123810,0.44947131,41430.0,41429.0,0.01089432]
[1644033125811,0.44947131,41430.0,41429.0,0.01039432]
[1644033127362,0.44947131,41430.0,41429.0,0.00020032]
[1644033127555,0.44947131,41430.0,41428.0,0.360652]
[1644033127556,0.44947131,41430.0,41428.0,0.36085232]
[1644033127754,0.44947131,41430.0,41428.0,0.24020032]
[1644033128358,0.44447131,41430.0,41428.0,0.24020032]
[1644033128756,0.44447131,41430.0,41428.0,0.24]
[1644033129562,0.73090237,41430.0,41428.0,0.24]
[1644033129809,0.8,41428.0,41418.0,0.41652742]
[1644033130018,0.04982426,41420.0,41418.0,0.0022]
[1644033130215,0.13654856,41420.0,41418.0,0.0022]
[1644033130608,0.90057804,41420.0,41418.0,0.0022]
[1644033133758,1.00057804,41420.0,41418.0,0.0022]
[1644033133959,0.90057804,41420.0,41418.0,0.0022]
[1644033134158,0.21435392,41419.0,41418.0,0.0022]
[1644033134358,0.54566492,41419.0,41418.0,0.0022]
[1644033134562,0.21435392,41419.0,41418.0,0.0022]
[1644033134759,0.31435392,41419.0,41418.0,0.2422]
[1644033135359,0.06036708,41418.0,41416.0,0.00080785]
[1644033135560,0.331311,41417.0,41416.0,0.00080785]
[1644033135759,0.52963526,41417.0,41411.0,0.02]
[1644033135958,0.2175073,41413.0,41411.0,0.02]
[1644033139107,0.04982426,41412.0,41411.0,0.02]
[1644033139308,0.09832426,41412.0,41411.0,0.02]
[1644033139507,0.42963526,41412.0,41411.0,0.02]
[1644033139906,0.52963526,41412.0,41411.0,0.02]
[1644033141453,0.85664733,41412.0,41411.0,0.02]
[1644033144903,0.42427148,41410.0,41409.0,0.00080793]
[1644033145104,0.80408248,41410.0,41409.0,0.00080793]
[1644033145404,0.80408248,41410.0,41404.0,0.00019983]
[1644033145608,0.04982426,41405.0,41402.0,0.00019983]
[1644033145804,0.04982426,41405.0,41401.0,0.02017574]
[1644033146004,0.04982426,41405.0,41404.0,0.24]
[1644033155629,0.47409574,41405.0,41404.0,0.24]
[1644033156074,0.47409574,41405.0,41404.0,0.24017574]
[1644033157072,0.47409574,41405.0,41404.0,0.25040874]
[1644033157469,0.47409574,41405.0,41404.0,0.24017574]
[1644033161716,0.47409574,41405.0,41404.0,0.24]
[1644033163566,0.47409574,41405.0,41404.0,0.24017574]
[1644033164569,0.47409574,41405.0,41404.0,0.24]
[1644033167205,0.42427148,41405.0,41404.0,0.24]
[1644033167407,0.47401632,41405.0,41404.0,0.24]
[1644033167808,0.47401632,41405.0,41404.0,0.24025516]
[1644033168408,0.47401632,41405.0,41404.0,0.24]
[1644033168907,0.47401632,41405.0,41404.0,0.24025516]
[1644033169111,0.47401632,41405.0,41404.0,0.24]
[1644033169708,0.47401632,41405.0,41404.0,0.24025516]
[1644033175011,0.47401632,41405.0,41404.0,0.24045391]
[1644033175213,0.47401632,41405.0,41404.0,0.23045391]
[1644033175813,0.47401632,41405.0,41404.0,0.61850446]
[1644033176013,0.47401632,41405.0,41404.0,0.61830571]
[1644033176213,0.47401632,41405.0,41404.0,0.25615714]
[1644033180660,0.47401632,41405.0,41404.0,0.26639314]
[1644033182808,0.42427148,41405.0,41404.0,0.26639314]
[1644033192318,0.42427148,41405.0,41404.0,0.25615714]
[1644033193962,0.42427148,41405.0,41404.0,0.25635589]
[1644033194161,0.42427148,41405.0,41404.0,0.25615714]
[1644033196363,0.42427148,41405.0,41404.0,0.25590198]
[1644033197211,0.42418283,41405.0,41404.0,0.59280533]
[1644033197416,0.42418283,41405.0,41404.0,0.61870731]
[1644033197816,0.42418283,41405.0,41404.0,0.59280533]
[1644033198012,0.42418283,41405.0,41404.0,0.23]
[1644033198212,0.42418283,41405.0,41404.0,0.23019875]
[1644033199413,0.42418283,41405.0,41404.0,0.23]
[1644033199612,0.72064551,41405.0,41404.0,0.23]
[1644033200112,0.72064551,41405.0,41404.0,0.54096225]
[1644033201176,0.72064551,41405.0,41404.0,0.23]
[1644033201375,0.72064551,41405.0,41404.0,0.541161]
[1644033201576,0.72064551,41405.0,41404.0,0.23]
[1644033201776,0.72064551,41405.0,41404.0,0.23019875]
[1644033204580,0.42418283,41405.0,41404.0,0.541161]
[1644033204812,0.42418283,41405.0,41404.0,0.54096225]
[1644033205013,0.37656755,41405.0,41404.0,0.54096225]
[1644033205818,0.47656755,41405.0,41404.0,0.541161]
[1644033206015,0.47656755,41405.0,41404.0,0.23019875]
[1644033206219,0.32283851,41403.0,41402.0,0.00080521]
[1644033206417,0.0485,41403.0,41402.0,0.00080521]
[1644033206616,0.09824484,41403.0,41402.0,0.00080521]
[1644033206817,0.09824484,41403.0,41401.0,0.33096225]
[1644033207017,0.09824484,41403.0,41401.0,0.02]
[1644033207615,0.08481022,41402.0,41401.0,0.02]
[1644033208216,0.09824484,41403.0,41401.0,0.02]
[1644033209964,0.09824484,41403.0,41402.0,0.259069]
[1644033210160,0.39036317,41403.0,41402.0,0.259069]
[1644033210761,0.39036317,41403.0,41401.0,0.279069]
[1644033210966,0.09824484,41403.0,41401.0,0.279069]
[1644033212916,0.09824484,41403.0,41401.0,0.519069]
[1644033213317,0.09824484,41403.0,41401.0,0.72420304]
[1644033213526,0.09824484,41403.0,41402.0,0.259069]
[1644033213720,0.04974484,41403.0,41402.0,0.259069]
[1644033213920,0.04974484,41403.0,41402.0,0.21755123]
[1644033214119,0.04974484,41403.0,41402.0,0.00025516]
[1644033214318,0.04974484,41403.0,41401.0,0.88856653]
[1644033214519,0.04974484,41403.0,41401.0,0.5257612]
[1644033215320,0.04974484,41403.0,41401.0,0.88856653]
[1644033216168,0.04974484,41403.0,41402.0,0.010237]
[1644033216364,0.37656755,41405.0,41402.0,0.010237]
[1644033216566,0.37656755,41405.0,41404.0,0.06062316]
[1644033216766,0.37656755,41405.0,41404.0,0.07085916]
[1644033217366,0.37656755,41405.0,41404.0,0.070604]
[1644033218164,0.37656755,41405.0,41404.0,0.07085916]
[1644033219565,0.37656755,41405.0,41404.0,0.29545151]
[1644033219813,0.37656755,41405.0,41404.0,0.07085916]
[1644033220014,0.37656755,41405.0,41404.0,0.38165642]
[1644033220514,0.37656755,41405.0,41404.0,0.07085916]
[1644033225165,0.42631239,41405.0,41404.0,0.07085916]
[1644033225764,0.37656755,41405.0,41404.0,0.07085916]
[1644033225964,0.42631239,41405.0,41404.0,0.07085916]
[1644033226171,0.42631239,41405.0,41404.0,0.51990396]
[1644033226568,0.37656755,41405.0,41404.0,0.51990396]
[1644033226970,0.37656755,41405.0,41404.0,0.74756747]
[1644033228816,0.37649819,41405.0,41404.0,0.74756747]
[1644033229816,0.32737389,41405.0,41404.0,0.74756747]
[1644033232364,0.32737389,41405.0,41404.0,0.5196488]
[1644033232565,0.32737389,41405.0,41404.0,0.3213172]
[1644033232768,0.32737389,41405.0,41404.0,0.71413249]
[1644033234823,0.32737389,41405.0,41404.0,0.39982716]
[1644033235620,0.2099671,41405.0,41404.0,0.39982716]
[1644033237621,0.2099671,41405.0,41404.0,0.49982716]
[1644033239773,0.2099671,41405.0,41404.0,0.45132716]
[1644033240869,0.065,41406.0,41405.0,1.04141697]
[1644033241072,0.04974484,41413.0,41406.0,0.8]
[1644033241372,0.04974484,41413.0,41410.0,0.06034946]
[1644033241770,0.04974484,41413.0,41411.0,0.24264364]
[1644033241971,0.04974484,41413.0,41412.0,0.16229402]
[1644033243020,0.04874484,41413.0,41412.0,0.16229402]
[1644033246268,0.04874484,41413.0,41412.0,0.40229402]
[1644033247768,0.04874484,41413.0,41412.0,0.40221669]
[1644033248569,0.04774484,41413.0,41412.0,0.40221669]
[1644033248769,0.04774484,41413.0,41412.0,0.39199269]
[1644033248969,0.04774484,41413.0,41412.0,0.40221169]
[1644033260525,0.5636,41419.0,41413.0,0.8]
[1644033260726,0.1159,41424.0,41420.0,0.20558555]
[1644033260982,0.08189211,41426.0,41418.0,0.05]
[1644033260983,0.0401246,41426.0,41418.0,0.05]
[1644033261176,0.0401246,41426.0,41421.0,0.05]
[1644033261379,0.30035271,41429.0,41421.0,0.05]
[1644033261578,0.00035271,41428.0,41425.0,0.2500084]
[1644033261875,0.00035271,41428.0,41425.0,0.3103474]
[1644033262275,0.00035271,41429.0,41425.0,0.3103474]
[1644033262476,0.00035271,41431.0,41425.0,0.3103474]
[1644033262677,0.00035271,41429.0,41427.0,0.05]
[1644033262882,0.01922748,41433.0,41428.0,0.060331]
[1644033263089,0.00035271,41432.0,41428.0,0.060331]
[1644033263276,0.01887477,41433.0,41429.0,0.19605046]
[1644033263477,0.00035271,41432.0,41428.0,0.06113401]
[1644033263678,0.01922748,41433.0,41428.0,0.06113401]
[1644033263878,0.00035271,41432.0,41428.0,0.06113401]
[1644033264078,0.01887477,41433.0,41428.0,0.11113401]
[1644033264278,0.00035271,41432.0,41428.0,0.11113401]
[1644033264478,0.01922748,41433.0,41428.0,0.110331]
[1644033264721,0.00035271,41432.0,41428.0,0.11113401]
[1644033264922,0.01887477,41433.0,41428.0,0.11113401]
[1644033265123,0.00035271,41432.0,41428.0,0.11113401]
[1644033265427,0.1475591,41434.0,41428.0,0.29805203]
[1644033265624,0.00035271,41432.0,41428.0,0.110331]
[1644033265826,0.21747246,41430.0,41429.0,0.000803]
[1644033266227,0.54878346,41430.0,41429.0,0.000803]
[1644033266925,0.54878346,41430.0,41426.0,0.06034]
[1644033267125,0.54878346,41430.0,41427.0,0.00080302]
[1644033267126,0.21747246,41430.0,41427.0,0.00080302]
[1644033267524,0.21782517,41430.0,41427.0,0.00080302]
[1644033267726,0.21747246,41430.0,41427.0,0.00080302]
[1644033268127,0.21782517,41430.0,41427.0,0.24]
[1644033268325,0.21747246,41430.0,41427.0,0.24]
[1644033268769,0.21782517,41430.0,41427.0,0.24]
[1644033268971,0.21747246,41430.0,41427.0,0.24]
[1644033269370,0.00035271,41431.0,41427.0,0.24]
[1644033269575,0.02052659,41432.0,41428.0,0.060334]
[1644033269774,0.00035271,41431.0,41428.0,0.060334]
[1644033269972,0.02052659,41432.0,41428.0,0.060334]
[1644033269973,0.0208793,41432.0,41428.0,0.060334]
[1644033270172,0.00035271,41431.0,41428.0,0.060334]
[1644033270372,0.02052659,41432.0,41428.0,0.060334]
[1644033270576,0.00035271,41431.0,41428.0,0.060334]
[1644033270772,0.00035271,41432.0,41428.0,0.060334]
[1644033270972,0.00035271,41431.0,41428.0,0.060334]
[1644033271171,0.25052139,41434.0,41428.0,0.060334]
[1644033271672,0.00035271,41435.0,41428.0,0.060334]
[1644033271871,0.01965481,41436.0,41429.0,0.00075879]
[1644033272071,0.00035271,41435.0,41431.0,0.060333]
[1644033272347,0.01965481,41436.0,41434.0,0.1988376]
[1644033272546,0.00035271,41435.0,41434.0,0.1988376]
[1644033272746,0.04112769,41436.0,41434.0,0.1988376]
[1644033272948,0.02112017,41436.0,41433.0,0.24125772]
[1644033274749,0.00035271,41437.0,41433.0,0.24125772]
[1644033274948,0.07186165,41438.0,41433.0,0.24125772]
[1644033275150,0.33166371,41437.0,41433.0,0.24125772]
[1644033275350,0.331311,41437.0,41433.0,0.24125772]
[1644033275551,0.33166371,41437.0,41433.0,0.24173346]
[1644033276573,0.331311,41437.0,41433.0,0.24125772]
[1644033276772,0.331311,41437.0,41433.0,0.24201959]
[1644033277674,0.331311,41437.0,41433.0,0.24125772]
[1644033277874,0.331311,41437.0,41433.0,0.24201959]
[1644033278474,0.331311,41437.0,41433.0,0.00076187]
[1644033278874,0.331311,41437.0,41432.0,0.23837674]
[1644033279074,0.331311,41437.0,41433.0,0.00076187]
[1644033280123,0.00035271,41438.0,41432.0,0.48827004]
[1644033280323,0.331311,41438.0,41433.0,0.00076187]
[1644033280525,0.33166371,41438.0,41433.0,0.00076187]
[1644033280724,0.3534241,41438.0,41433.0,0.00076187]
[1644033281324,0.3534241,41438.0,41432.0,0.48827004]
[1644033281526,0.3534241,41438.0,41433.0,0.00076186]
[1644033282525,0.3534241,41438.0,41432.0,0.48827004]
[1644033282725,0.37162443,41438.0,41433.0,0.00076186]
[1644033282925,0.34986404,41438.0,41433.0,0.00076186]
[1644033283125,0.34986404,41438.0,41434.0,0.06033]
[1644033283871,0.34986404,41438.0,41434.0,0.06109186]
[1644033284773,0.3497666,41438.0,41434.0,0.06109186]
[1644033284972,0.33156627,41438.0,41434.0,0.06033]
[1644033285976,0.00035271,41438.0,41432.0,0.48826904]
[1644033286173,0.10035271,41439.0,41432.0,0.48826904]
[1644033286373,0.00035271,41439.0,41434.0,0.00076191]
[1644033286573,0.49331111,41440.0,41434.0,0.00076191]
[1644033286574,0.49366382,41440.0,41434.0,0.00076191]
[1644033286773,0.33166171,41439.0,41434.0,0.00076191]
[1644033286976,0.331309,41439.0,41434.0,0.00076191]
[1644033287223,0.43166171,41439.0,41434.0,0.00076191]
[1644033287423,0.43166171,41439.0,41432.0,0.48826904]
[1644033287623,0.43166171,41439.0,41434.0,0.00078406]
[1644033288629,0.4512137,41439.0,41432.0,0.48826904]
[1644033288925,0.4512137,41439.0,41434.0,0.00078406]
[1644033289730,0.4512137,41439.0,41432.0,0.42793804]
[1644033290024,0.4512137,41439.0,41434.0,0.00078406]
[1644033290825,0.5,41438.0,41427.0,0.35033239]
[1644033291073,0.50035271,41438.0,41430.0,0.06033012]
[1644033291277,0.331309,41437.0,41434.0,0.00074062]
[1644033291475,0.33166171,41437.0,41434.0,0.00074062]
[1644033291672,0.331309,41437.0,41434.0,0.00074062]
[1644033292074,0.331309,41437.0,41427.0,0.350331]
[1644033292273,0.19471467,41433.0,41429.0,0.120661]
[1644033292473,0.15377432,41432.0,41429.0,0.120661]
[1644033292875,0.15412703,41432.0,41429.0,0.120661]
[1644033293882,0.00035271,41432.0,41429.0,0.120661]
[1644033294077,0.19471467,41433.0,41429.0,0.120661]
[1644033294720,0.19471467,41433.0,41429.0,0.1214644]
[1644033295822,0.19471467,41433.0,41429.0,0.120661]
[1644033296024,0.19471467,41433.0,41429.0,0.1214644]
[1644033296223,0.00035271,41435.0,41429.0,0.1214644]
[1644033296427,0.14897006,41436.0,41429.0,0.1214644]
[1644033296624,0.17091855,41436.0,41433.0,0.20804976]
[1644033296825,0.0223012,41436.0,41433.0,0.20804976]
[1644033297123,0.02194849,41436.0,41433.0,0.20804976]
[1644033298024,0.02194849,41436.0,41433.0,0.32869976]
[1644033298874,0.21184146,41440.0,41433.0,0.32869976]
[1644033299079,0.00035271,41437.0,41433.0,0.32869976]
[1644033299274,0.00035271,41440.0,41433.0,0.3890247]
[1644033299482,0.00035271,41439.0,41435.0,0.060326]
[1644033299677,0.00035271,41440.0,41435.0,0.060326]
[1644033299881,0.0192664,41441.0,41435.0,0.060326]
[1644033300078,0.00035271,41440.0,41435.0,0.060326]
[1644033300275,0.01891369,41441.0,41435.0,0.060326]
[1644033300474,0.00035271,41440.0,41435.0,0.060326]
[1644033300676,0.0184632,41441.0,41435.0,0.060326]
[1644033300974,0.00035271,41440.0,41435.0,0.060326]
[1644033301174,0.00115593,41441.0,41435.0,0.060326]
[1644033301876,0.00035271,41441.0,41435.0,0.060326]
[1644033302078,0.00080322,41441.0,41435.0,0.060326]
[1644033302332,0.00115593,41441.0,41435.0,0.060326]
[1644033303131,0.00035271,41441.0,41435.0,0.060326]
[1644033303434,0.00080322,41441.0,41435.0,0.060326]
[1644033303631,0.00115593,41441.0,41435.0,0.060326]
[1644033303831,0.00080322,41441.0,41435.0,0.060326]
[1644033304032,0.00080322,41441.0,41440.0,0.17738861]
[1644033304244,0.00035271,41443.0,41440.0,0.51581647]
[1644033304436,0.02007364,41446.0,41440.0,0.51581647]
[1644033304437,0.00080322,41441.0,41440.0,0.51581647]
[1644033304633,0.00080322,41441.0,41440.0,0.83108389]
[1644033305131,0.00080322,41441.0,41440.0,0.77077089]
[1644033305333,0.00035271,41442.0,41440.0,0.52609847]
[1644033305533,0.00035271,41443.0,41441.0,0.31442905]
[1644033305733,0.00080321,41443.0,41441.0,0.05]
[1644033306371,0.00080321,41443.0,41440.0,0.060322]
[1644033306572,0.00035271,41445.0,41440.0,0.060322]
[1644033306776,0.00032893,41444.0,41440.0,0.060322]
[1644033307774,0.00035271,41445.0,41440.0,0.060322]
[1644033307975,0.19072904,41446.0,41440.0,0.060322]
[1644033308577,0.19072904,41446.0,41441.0,0.26609008]
[1644033308776,0.19072904,41446.0,41442.0,0.060316]
[1644033309382,0.00035271,41446.0,41442.0,0.060316]
[1644033309579,0.01989971,41447.0,41442.0,0.060316]
[1644033310527,0.02070546,41447.0,41442.0,0.060316]
[1644033310926,0.00215846,41447.0,41442.0,0.060316]
[1644033311329,0.00135271,41447.0,41442.0,0.3873493]
[1644033311728,0.00213077,41447.0,41442.0,0.3270393]
[1644033312528,0.00135271,41447.0,41442.0,0.3270393]
[1644033312729,0.00135271,41447.0,41443.0,0.010269]
[1644033312929,0.00213077,41447.0,41443.0,0.010265]
[1644033313772,0.00127747,41447.0,41443.0,0.010265]
[1644033314372,0.00205553,41447.0,41443.0,0.010265]
[1644033314774,0.00205553,41447.0,41443.0,0.060265]
[1644033314976,0.00127747,41447.0,41444.0,0.2578125]
[1644033315171,0.00127747,41447.0,41445.0,0.060313]
[1644033315373,0.00208321,41447.0,41445.0,0.060313]
[1644033315973,0.00208321,41447.0,41446.0,0.17561854]
[1644033316172,0.00092476,41447.0,41446.0,0.17561854]
[1644033317530,0.00092476,41447.0,41446.0,0.42544837]
[1644033318130,0.00092476,41447.0,41445.0,0.300313]
[1644033318329,0.00127747,41447.0,41445.0,0.300313]
[1644033318532,0.00127747,41447.0,41446.0,0.25226528]
[1644033318729,0.00092476,41447.0,41446.0,0.25226528]
[1644033320832,0.00092476,41447.0,41445.0,0.24]
[1644033321075,0.00127747,41447.0,41445.0,0.01031902]
[1644033321476,0.00127747,41447.0,41445.0,0.07063202]
[1644033322075,0.00127747,41447.0,41445.0,0.24112978]
[1644033322477,0.00127747,41447.0,41446.0,0.2859375]
[1644033322680,0.00127747,41447.0,41446.0,0.3359375]
[1644033322681,0.00092476,41447.0,41446.0,0.3359375]
[1644033324933,0.00092476,41447.0,41446.0,0.3461995]
[1644033325231,0.00092476,41447.0,41446.0,0.3359375]
[1644033325729,0.00092476,41447.0,41446.0,0.05]
[1644033328490,0.00092476,41447.0,41445.0,5.602e-05]
[1644033328685,0.00127747,41447.0,41445.0,5.602e-05]
[1644033328884,0.331309,41446.0,41445.0,5.602e-05]
[1644033329084,0.33166171,41446.0,41445.0,5.602e-05]
[1644033329584,0.33166171,41446.0,41440.0,0.05]
[1644033329786,0.07876861,41446.0,41440.0,0.170627]
[1644033330983,0.00078259,41445.0,41440.0,0.170627]
[1644033331182,0.0011353,41445.0,41440.0,0.170627]